fUSD/lending_fUSD_20241125
["ID","MTS","AMOUNT","RATE_DAILY","PERIOD"]
[343230801,1732505456510,-500.0,0.00046575,2]
[343230802,1732505456530,-506.97129296,0.00046575,2]
[343230803,1732505456548,-500.0,0.00046575,2]
[343230804,1732505456567,-500.0,0.00046575,2]
[343230805,1732505456585,-234.48963998,0.00046575,2]
[343230806,1732505456600,-500.0,0.00046575,2]
[343230807,1732505456619,-500.0,0.00046575,2]
[343230808,1732505456633,-500.0,0.00046575,2]
[343230809,1732505456650,-500.0,0.00046575,2]
[343230810,1732505456664,-151.0,0.00046575,14]
[343230811,1732505456678,-500.0,0.00046575,2]
[343230812,1732505456699,-500.0,0.00046575,2]
[343230813,1732505456715,-500.0,0.00046575,2]
[343230814,1732505456730,-500.0,0.00046575,2]
[343230815,1732505456745,-500.0,0.00046575,2]
[343230816,1732505456761,-500.0,0.00046575,2]
[343230817,1732505456776,-500.0,0.00046575,2]
[343230818,1732505456791,-500.0,0.00046575,2]
[343230819,1732505456806,-500.0,0.00046575,2]
[343230820,1732505456822,-500.0,0.00046575,2]
[343230821,1732505456838,-500.0,0.00046575,2]
[343230822,1732505456854,-500.0,0.00046575,2]
[343230823,1732505456871,-578.14567101,0.00046575,2]
[343230824,1732505456886,-520.71760396,0.00046575,2]
[343230825,1732505456901,-500.0,0.00046575,2]
[343230826,1732505456917,-500.0,0.00046575,2]
[343230827,1732505456933,-500.0,0.00046575,2]
[343230828,1732505456948,-500.0,0.00046575,2]
[343230829,1732505456964,-223.35283244,0.00046575,2]
[343230830,1732505456980,-500.0,0.00046575,2]
[343230831,1732505456995,-500.0,0.00046575,2]
[343230832,1732505457009,-500.0,0.00046575,2]
[343230833,1732505457027,-500.0,0.00046575,2]
[343230834,1732505457042,-500.0,0.00046575,2]
[343230835,1732505457058,-500.0,0.00046575,2]
[343230836,1732505457073,-500.0,0.00046575,2]
[343230837,1732505457091,-506.04521237,0.00046575,2]
[343230838,1732505457106,-500.0,0.00046575,2]
[343230839,1732505457122,-500.0,0.00046575,2]
[343230840,1732505457138,-310.50661596,0.00046575,2]
[343230841,1732505457153,-500.0,0.00046575,2]
[343230842,1732505457168,-500.0,0.00046575,2]
[343230843,1732505457185,-500.0,0.00046575,2]
[343230844,1732505457201,-500.0,0.00046575,2]
[343230845,1732505457217,-500.0,0.00046575,2]
[343230846,1732505457234,-500.0,0.00046575,2]
[343230847,1732505457250,-500.0,0.00046575,2]
[343230848,1732505457266,-500.0,0.00046575,2]
[343230849,1732505457282,-500.0,0.00046575,2]
[343230850,1732505457299,-500.0,0.00046575,2]
[343230851,1732505457315,-311.98926888,0.00046575,2]
[343230852,1732505457329,-500.0,0.00046575,2]
[343230853,1732505457345,-500.0,0.00046575,2]
[343230854,1732505457360,-500.0,0.00046575,2]
[343230855,1732505457375,-500.0,0.00046575,2]
[343230856,1732505457392,-500.0,0.00046575,2]
[343230857,1732505457408,-500.0,0.00046575,2]
[343230858,1732505457536,-500.0,0.00046575,2]
[343230859,1732505457550,-500.0,0.00046575,2]
[343230860,1732505457560,-500.0,0.00046575,2]
[343230861,1732505457569,-500.0,0.00046575,2]
[343230862,1732505457579,-500.0,0.00046575,2]
[343230863,1732505457588,-500.0,0.00046575,2]
[343230864,1732505457597,-564.07372583,0.00046575,2]
[343230865,1732505457607,-151.0,0.00046575,14]
[343230866,1732505457616,-151.0,0.00046575,14]
[343230867,1732505457626,-500.0,0.00046575,30]
[343230868,1732505457636,-2279.94,0.00046575,120]
[343230869,1732505457646,-504.11278165,0.00046575,15]
[343230870,1732505457655,-243.79646903,0.00046575,30]
[343230871,1732505457667,-150.0,0.00046575,30]
[343230872,1732505457676,-500.0,0.00046575,30]
[343230873,1732505457689,-500.0,0.00046575,30]
[343230874,1732505457699,-161.9080357,0.00046575,30]
[343230875,1732505457708,-500.0,0.00046575,30]
[343230876,1732505457717,-150.0,0.00046575,30]
[343230877,1732505457727,-994.35135875,0.00046575,2]
[343230878,1732505457737,-150.0,0.00046575,2]
[343230879,1732505457747,-500.0,0.00046575,30]
[343230880,1732505457758,-150.0,0.00046575,2]
[343230881,1732505457768,-500.0,0.00046575,30]
[343230882,1732505457778,-150.0,0.00046575,2]
[343230883,1732505457788,-1360.0,0.00046575,30]
[343230884,1732505457799,-5315.97963527,0.00046575,30]
[343230885,1732505457809,-5315.97963527,0.00046575,30]
[343230886,1732505457823,-241.96506562,0.00046575,30]
[343230887,1732505457835,-510.718,0.00046575,120]
[343230888,1732505457847,-150.0,0.00046586,30]
[343230889,1732505457858,-150.0,0.00046596,30]
[343230890,1732505457868,-590.2539,0.000466,30]
[343230891,1732505457879,-810.8609,0.000466,30]
[343230892,1732505457889,-364.8779,0.000466,30]
[343230893,1732505457900,-680.73352249,0.00046615,30]
[343230894,1732505457910,-282.31446577,0.00046615,30]
[343230895,1732505457920,-212.56932501,0.00046615,30]
[343230896,1732505457930,-150.0,0.00046663,30]
[343230897,1732505457941,-680.73352249,0.00046664,30]
[343230898,1732505457955,-282.31446577,0.00046664,30]
[343230899,1732505457966,-212.56932501,0.00046664,30]
[343230900,1732505457977,-2200.0,0.000467,17]
[343230901,1732505457988,-150.0,0.000467,30]
[343230902,1732505458000,-150.0,0.00046703,30]
[343230903,1732505458011,-694.55,0.0004671,120]
[343230904,1732505458024,-500.0,0.00046711,7]
[343230905,1732505458035,-680.73352249,0.00046713,30]
[343230906,1732505458045,-282.31446577,0.00046713,30]
[343230907,1732505458055,-212.56932501,0.00046713,30]
[343230908,1732505458065,-150.0,0.00046741,30]
[343230909,1732505458075,-2222.44134254,0.00046747,2]
[343230910,1732505458085,-13183.90141274,0.00046748,2]
[343230911,1732505458096,-680.73352249,0.00046762,30]
[343230912,1732505458106,-282.31446577,0.00046762,30]
[343230913,1732505458115,-212.56932501,0.00046762,30]
[343230914,1732505458125,-200.0,0.00046763,7]
[343230915,1732505458135,-500.0,0.00046797,15]
[343230916,1732505458145,-500.0,0.00046797,15]
[343230917,1732505458154,-500.0,0.00046797,15]
[343230918,1732505458164,-500.0,0.00046797,15]
[343230919,1732505458174,-500.0,0.00046797,15]
[343230920,1732505458186,-500.0,0.00046797,15]
[343230921,1732505458197,-293.45011174,0.00046797,15]
[343230922,1732505458207,-2700.0,0.000468,17]
[343230923,1732505458216,-222.0,0.0004681,30]
[343230924,1732505458225,-680.73352249,0.00046811,30]
[343230925,1732505458234,-282.31446577,0.00046811,30]
[343230926,1732505458243,-212.56932501,0.00046811,30]
[343230927,1732505458253,-150.0,0.00046811,30]
[343230928,1732505458262,-150.0,0.00046819,30]
[343230929,1732505458271,-1000.0,0.00046821,10]
[343230930,1732505458281,-1000.0,0.00046821,2]
[343230931,1732505458291,-1469.99192341,0.00046833,15]
[343230932,1732505458300,-150.0,0.00046842,30]
[343230933,1732505458310,-500.0,0.00046846,2]
[343230934,1732505458320,-577.87164943,0.00046846,2]
[343230935,1732505458330,-500.0,0.00046846,2]
[343230936,1732505458339,-1080.52,0.00046846,2]
[343230937,1732505458349,-6405.92,0.00046846,2]
[343230938,1732505458358,-500.0,0.00046846,2]
[343230939,1732505458367,-500.0,0.00046846,2]
[343230940,1732505458376,-9287.32,0.00046846,2]
[343230941,1732505458386,-273.7885711,0.00046846,2]
[343230942,1732505458395,-4887.97,0.00046846,2]
[343230943,1732505458405,-519.7,0.00046846,2]
[343230944,1732505458415,-6764.46,0.00046846,2]
[343230945,1732505458425,-624.55,0.00046846,2]
[343230946,1732505458436,-500.0,0.00046846,2]
[343230947,1732505458445,-500.0,0.00046846,2]
[343230948,1732505458453,-40173.0,0.00046846,2]
[343230949,1732505458463,-7573.22,0.00046846,2]
[343230950,1732505458473,-500.0,0.00046846,2]
[343230951,1732505458483,-6533.67,0.00046846,2]
[343230952,1732505458493,-10004.34,0.00046846,2]
[343230953,1732505458502,-734.49,0.00046846,2]
[343230954,1732505458511,-520.32972936,0.00046846,2]
[343230955,1732505458521,-500.0,0.00046846,2]
[343230956,1732505458531,-500.0,0.00046846,2]
[343230957,1732505458540,-500.0,0.00046846,2]
[343230958,1732505458550,-518.0949538,0.00046846,2]
[343230959,1732505458560,-500.0,0.00046846,2]
[343230960,1732505458569,-500.0,0.00046846,2]
[343230961,1732505458579,-500.0,0.00046846,2]
[343230962,1732505458588,-1556.24,0.00046846,2]
[343230963,1732505458598,-21082.09,0.00046846,2]
[343230964,1732505458607,-500.0,0.00046846,2]
[343230965,1732505458616,-500.0,0.00046846,2]
[343230966,1732505458626,-500.0,0.00046846,2]
[343230967,1732505458636,-500.0,0.00046846,2]
[343230968,1732505458645,-485.6822891,0.00046846,2]
[343230969,1732505458654,-500.0,0.00046846,2]
[343230970,1732505458664,-500.0,0.00046847,2]
[343230971,1732505458674,-500.0,0.00046847,2]
[343230972,1732505458686,-500.0,0.00046847,2]
[343230973,1732505458696,-6497.19,0.00046847,2]
[343230974,1732505458706,-500.0,0.00046847,2]
[343230975,1732505458716,-1184.31,0.00046847,2]
[343230976,1732505458725,-500.0,0.00046847,2]
[343230977,1732505458735,-1107.97,0.00046847,2]
[343230978,1732505458745,-500.0,0.00046847,2]
[343230979,1732505458756,-500.0,0.00046847,2]
[343230980,1732505458766,-500.0,0.00046847,2]
[343230981,1732505458776,-500.0,0.00046847,2]
[343230982,1732505458786,-441.55576348,0.00046847,2]
[343230983,1732505458795,-500.0,0.00046847,2]
[343230984,1732505458805,-541.05,0.00046847,120]
[343230985,1732505458814,-500.0,0.00046847,2]
[343230986,1732505458824,-500.0,0.00046847,2]
[343230987,1732505458834,-589.2,0.00046847,2]
[343230988,1732505458843,-500.0,0.00046847,2]
[343230989,1732505458852,-500.0,0.00046847,2]
[343230990,1732505458862,-500.0,0.00046847,2]
[343230991,1732505458871,-500.0,0.00046847,2]
[343230992,1732505458881,-500.0,0.00046847,2]
[343230993,1732505458891,-175.31159684,0.00046847,2]
[343230994,1732505458900,-500.0,0.00046847,2]
[343230995,1732505458909,-446.11006452,0.00046847,2]
[343230996,1732505458919,-500.0,0.00046847,2]
[343230997,1732505459011,-500.0,0.00046847,2]
[343230998,1732505459029,-500.0,0.00046847,2]
[343230999,1732505459039,-500.0,0.00046847,2]
[343231000,1732505459049,-500.0,0.00046847,2]
[343231001,1732505459058,-500.0,0.00046847,2]
[343231002,1732505459069,-541.10617119,0.00046847,2]
[343231003,1732505459079,-500.0,0.00046847,2]
[343231004,1732505459089,-500.0,0.00046847,2]
[343231005,1732505459099,-500.0,0.00046847,2]
[343231006,1732505459109,-500.0,0.00046847,2]
[343231007,1732505459119,-500.0,0.00046847,2]
[343231008,1732505459128,-500.0,0.00046847,2]
[343231009,1732505459138,-500.0,0.00046847,2]
[343231010,1732505459147,-500.0,0.00046847,2]
[343231011,1732505459156,-500.0,0.00046847,2]
[343231012,1732505459166,-500.0,0.00046847,2]
[343231013,1732505459175,-503.7825247,0.00046847,2]
[343231014,1732505459186,-500.0,0.00046847,2]
[343231015,1732505459196,-500.0,0.00046847,2]
[343231016,1732505459205,-500.0,0.00046847,2]
[343231017,1732505459215,-500.0,0.00046847,2]
[343231018,1732505459225,-620.51,0.00046847,2]
[343231019,1732505459234,-951.53,0.00046847,2]
[343231020,1732505459243,-500.0,0.00046847,2]
[343231021,1732505459253,-589.24926069,0.00046847,2]
[343231022,1732505459263,-500.0,0.00046847,2]
[343231023,1732505459272,-500.0,0.00046847,2]
[343231024,1732505459282,-582.73632732,0.00046847,2]
[343231025,1732505459291,-500.0,0.00046847,2]
[343231026,1732505459301,-500.0,0.00046847,2]
[343231027,1732505459311,-500.0,0.00046847,2]
[343231028,1732505459321,-500.0,0.00046847,2]
[343231029,1732505459330,-500.0,0.00046847,2]
[343231030,1732505459340,-500.0,0.00046847,2]
[343231031,1732505459349,-500.0,0.00046847,2]
[343231032,1732505459359,-500.0,0.00046847,2]
[343231033,1732505459369,-500.0,0.00046847,2]
[343231034,1732505459379,-500.0,0.00046847,2]
[343231035,1732505459388,-1494.56,0.00046847,2]
[343231036,1732505459398,-5495.32,0.00046847,2]
[343231037,1732505459408,-997.74,0.00046847,2]
[343231038,1732505459417,-500.0,0.00046847,2]
[343231039,1732505459427,-500.0,0.00046847,2]
[343231040,1732505459438,-500.0,0.00046847,2]
[343231041,1732505459448,-2279.94,0.00046847,120]
[343231042,1732505459457,-500.0,0.00046847,2]
[343231043,1732505459467,-500.0,0.00046847,2]
[343231044,1732505459477,-500.0,0.00046847,2]
[343231045,1732505459486,-500.0,0.00046847,2]
[343231046,1732505459496,-500.0,0.00046847,2]
[343231047,1732505459505,-500.0,0.00046847,2]
[343231048,1732505459515,-500.0,0.00046847,2]
[343231049,1732505459524,-500.0,0.00046847,2]
[343231050,1732505459534,-4512.14,0.00046847,2]
[343231051,1732505459543,-500.0,0.00046847,2]
[343231052,1732505459553,-500.0,0.00046847,120]
[343231053,1732505459563,-500.0,0.00046847,2]
[343231054,1732505459573,-500.0,0.00046847,2]
[343231055,1732505459582,-11986.63,0.00046847,2]
[343231056,1732505459591,-583.38067845,0.00046847,2]
[343231057,1732505459601,-566.74619656,0.00046847,2]
[343231058,1732505459611,-560.61,0.00046847,2]
[343231059,1732505459620,-10959.33,0.00046847,2]
[343231060,1732505459630,-500.0,0.00046847,2]
[343231061,1732505459639,-598.3836162,0.00046847,2]
[343231062,1732505459649,-5402.42,0.00046847,2]
[343231063,1732505459659,-500.0,0.00046847,2]
[343231064,1732505459668,-835.02,0.00046847,2]
[343231065,1732505459678,-6283.51,0.00046847,2]
[343231066,1732505459689,-500.0,0.00046847,2]
[343231067,1732505459699,-500.0,0.00046847,2]
[343231068,1732505459708,-500.0,0.00046847,2]
[343231069,1732505459718,-203.26633201,0.00046847,2]
[343231070,1732505459728,-8158.98,0.00046847,2]
[343231071,1732505459738,-652.59,0.00046847,2]
[343231072,1732505459747,-500.0,0.00046847,2]
[343231073,1732505459758,-500.0,0.00046848,2]
[343231074,1732505459768,-500.0,0.00046848,2]
[343231075,1732505459779,-500.0,0.00046848,2]
[343231076,1732505459789,-500.0,0.00046848,2]
[343231077,1732505459799,-570.61,0.00046848,2]
[343231078,1732505459810,-500.0,0.00046848,2]
[343231079,1732505459820,-500.0,0.00046848,2]
[343231080,1732505459830,-500.0,0.00046848,2]
[343231081,1732505459841,-508.84798962,0.00046848,2]
[343231082,1732505459851,-500.0,0.00046848,2]
[343231083,1732505459862,-506.14702469,0.00046848,2]
[343231084,1732505459872,-500.0,0.00046848,2]
[343231085,1732505459882,-500.0,0.00046848,2]
[343231086,1732505459893,-500.0,0.00046848,2]
[343231087,1732505459903,-500.0,0.00046848,2]
[343231088,1732505459913,-527.92726544,0.00046848,2]
[343231089,1732505459924,-500.0,0.00046848,2]
[343231090,1732505459937,-4169.01,0.00046848,2]
[343231091,1732505459949,-500.0,0.00046848,2]
[343231092,1732505459960,-340.14458938,0.00046848,2]
[343231093,1732505459970,-500.0,0.00046848,2]
[343231094,1732505459979,-500.0,0.00046848,2]
[343231095,1732505459989,-500.0,0.00046848,2]
[343231096,1732505459999,-500.0,0.00046848,2]
[343231097,1732505460009,-500.0,0.00046848,2]
[343231098,1732505460021,-500.0,0.00046848,2]
[343231099,1732505460031,-500.0,0.00046848,2]
[343231100,1732505460041,-500.0,0.00046848,2]
[343231101,1732505460052,-500.0,0.00046848,2]
[343231102,1732505460063,-500.0,0.00046848,2]
[343231103,1732505460073,-500.0,0.00046848,2]
[343231104,1732505460083,-240.0738257,0.00046848,2]
[343231105,1732505460093,-500.0,0.00046848,2]
[343231106,1732505460103,-517.86161778,0.00046848,2]
[343231107,1732505460113,-500.0,0.00046848,2]
[343231108,1732505460122,-500.0,0.00046848,2]
[343231109,1732505460132,-500.0,0.00046848,2]
[343231110,1732505460141,-195.03718742,0.00046848,2]
[343231111,1732505460151,-500.0,0.00046848,2]
[343231112,1732505460161,-500.0,0.00046848,2]
[343231113,1732505460171,-500.0,0.00046848,2]
[343231114,1732505460181,-515.02223025,0.00046848,2]
[343231115,1732505460194,-500.0,0.00046848,2]
[343231116,1732505460204,-500.0,0.00046848,120]
[343231117,1732505460214,-500.0,0.00046848,2]
[343231118,1732505460224,-383.54326159,0.00046848,2]
[343231119,1732505460234,-509.84985257,0.00046848,2]
[343231120,1732505460243,-500.0,0.00046848,2]
[343231121,1732505460256,-468.28447216,0.00046848,2]
[343231122,1732505460266,-500.0,0.00046848,2]
[343231123,1732505460276,-500.0,0.00046848,2]
[343231124,1732505460285,-500.0,0.00046848,2]
[343231125,1732505460295,-500.0,0.00046848,2]
[343231126,1732505460304,-500.0,0.00046848,2]
[343231127,1732505460314,-500.0,0.00046848,2]
[343231128,1732505460324,-500.0,0.00046848,2]
[343231129,1732505460333,-706.94608201,0.00046848,2]
[343231130,1732505460343,-500.0,0.00046848,2]
[343231131,1732505460352,-500.0,0.00046848,2]
[343231132,1732505460362,-500.0,0.00046848,2]
[343231133,1732505460371,-500.0,0.00046848,2]
[343231134,1732505460380,-500.0,0.00046848,2]
[343231135,1732505460390,-500.0,0.00046848,7]
[343231136,1732505460399,-500.0,0.00046848,2]
[343231137,1732505460409,-500.0,0.00046848,2]
[343231138,1732505460418,-500.0,0.00046848,2]
[343231139,1732505460427,-500.0,0.00046848,2]
[343231140,1732505460438,-523.36964965,0.00046848,2]
[343231141,1732505460447,-500.0,0.00046848,2]
[343231142,1732505460456,-500.0,0.00046848,2]
[343231143,1732505460466,-500.0,0.00046848,2]
[343231144,1732505460475,-506.55113568,0.00046848,2]
[343231145,1732505460484,-500.0,0.00046848,2]
[343231146,1732505460494,-500.0,0.00046848,2]
[343231147,1732505460503,-500.0,0.00046848,2]
[343231148,1732505460514,-541.07207924,0.00046848,2]
[343231149,1732505460523,-500.0,0.00046848,2]
[343231150,1732505460533,-500.0,0.00046848,2]
[343231151,1732505460542,-500.0,0.00046848,2]
[343231152,1732505460551,-500.0,0.00046848,2]
[343231153,1732505460561,-506.93486875,0.00046848,2]
[343231154,1732505460570,-509.4561132,0.00046848,2]
[343231155,1732505460579,-168.0,0.00046848,2]
[343231156,1732505460589,-500.0,0.00046848,2]
[343231157,1732505460598,-500.0,0.00046848,2]
[343231158,1732505460607,-500.0,0.00046848,2]
[343231159,1732505460616,-500.0,0.00046848,2]
[343231160,1732505460626,-500.0,0.00046848,2]
[343231161,1732505460635,-500.0,0.00046848,2]
[343231162,1732505460645,-510.773759,0.00046848,2]
[343231163,1732505460654,-500.0,0.00046848,2]
[343231164,1732505460664,-500.0,0.00046848,2]
[343231165,1732505460673,-500.0,0.00046848,2]
[343231166,1732505460683,-500.0,0.00046848,2]
[343231167,1732505460695,-500.0,0.00046848,2]
[343231168,1732505460705,-500.0,0.00046848,2]
[343231169,1732505460715,-500.0,0.00046848,2]
[343231170,1732505460724,-500.0,0.00046848,2]
[343231171,1732505460735,-500.0,0.00046848,2]
[343231172,1732505460745,-526.55587938,0.00046848,2]
[343231173,1732505460755,-500.0,0.00046848,2]
[343231174,1732505460764,-500.0,0.00046848,2]
[343231175,1732505460774,-500.0,0.00046848,2]
[343231176,1732505460784,-500.0,0.00046848,2]
[343231177,1732505460794,-500.0,0.00046848,2]
[343231178,1732505460804,-500.0,0.00046848,2]
[343231179,1732505460813,-500.0,0.00046848,2]
[343231180,1732505460823,-500.0,0.00046848,2]
[343231181,1732505460832,-500.0,0.00046848,2]
[343231182,1732505460842,-500.0,0.00046848,2]
[343231183,1732505460852,-500.0,0.00046848,2]
[343231184,1732505460861,-503.88296941,0.00046848,2]
[343231185,1732505460870,-500.0,0.00046848,2]
[343231186,1732505460880,-500.0,0.00046848,2]
[343231187,1732505460889,-500.0,0.00046848,2]
[343231188,1732505460899,-500.0,0.00046848,2]
[343231189,1732505460909,-600.88566277,0.00046848,2]
[343231190,1732505460919,-500.0,0.00046848,2]
[343231191,1732505460928,-500.0,0.00046848,2]
[343231192,1732505460940,-500.0,0.00046848,2]
[343231193,1732505460949,-500.0,0.00046848,2]
[343231194,1732505460959,-500.0,0.00046848,2]
[343231195,1732505460968,-500.0,0.00046848,2]
[343231196,1732505460979,-500.0,0.00046848,2]
[343231197,1732505460989,-500.0,0.00046848,2]
[343231198,1732505460999,-500.0,0.00046848,2]
[343231199,1732505461008,-500.0,0.00046848,2]
[343231200,1732505461021,-525.01872663,0.00046848,2]
[343231201,1732505461032,-500.0,0.00046848,2]
[343231202,1732505461041,-509.10656712,0.00046848,2]
[343231203,1732505461051,-500.0,0.00046848,2]
[343231204,1732505461061,-500.0,0.00046848,2]
[343231205,1732505461071,-500.0,0.00046848,2]
[343231206,1732505461080,-500.0,0.00046848,2]
[343231207,1732505461090,-500.0,0.00046848,2]
[343231208,1732505461100,-500.0,0.00046848,2]
[343231209,1732505461110,-500.0,0.00046848,2]
[343231210,1732505461122,-500.0,0.00046848,2]
[343231211,1732505461131,-500.0,0.00046848,2]
[343231212,1732505461140,-250.61801223,0.00046848,2]
[343231213,1732505461150,-500.0,0.00046848,2]
[343231214,1732505461159,-500.0,0.00046848,2]
[343231215,1732505461168,-500.0,0.00046848,2]
[343231216,1732505461178,-500.0,0.00046848,2]
[343231217,1732505461189,-500.0,0.00046848,2]
[343231218,1732505461198,-500.0,0.00046848,2]
[343231219,1732505461207,-500.0,0.00046848,2]
[343231220,1732505461216,-516.5539943,0.00046848,2]
[343231221,1732505461226,-500.0,0.00046848,2]
[343231222,1732505461235,-500.0,0.00046848,2]
[343231223,1732505461249,-500.0,0.00046848,2]
[343231224,1732505461258,-237.16,0.00046848,2]
[343231225,1732505461371,-500.0,0.00046848,2]
[343231226,1732505461381,-547.75450916,0.00046848,2]
[343231227,1732505461390,-500.0,0.00046848,2]
[343231228,1732505461400,-391.85964021,0.00046848,2]
[343231229,1732505461409,-500.0,0.00046848,2]
[343231230,1732505461418,-500.0,0.00046848,2]
[343231231,1732505461427,-500.0,0.00046848,2]
[343231232,1732505461437,-500.0,0.00046848,2]
[343231233,1732505461447,-506.63037815,0.00046848,2]
[343231234,1732505461456,-500.0,0.00046848,2]
[343231235,1732505461465,-500.0,0.00046848,2]
[343231236,1732505461475,-500.0,0.00046848,2]
[343231237,1732505461484,-500.0,0.00046848,2]
[343231238,1732505461494,-500.0,0.00046848,2]
[343231239,1732505461503,-500.0,0.00046848,2]
[343231240,1732505461512,-514.87433608,0.00046848,2]
[343231241,1732505461521,-500.0,0.00046848,2]
[343231242,1732505461531,-500.0,0.00046848,2]
[343231243,1732505461540,-500.0,0.00046848,2]
[343231244,1732505461550,-500.0,0.00046848,2]
[343231245,1732505461559,-566.48425089,0.00046848,2]
[343231246,1732505461568,-500.0,0.00046848,2]
[343231247,1732505461578,-500.0,0.00046848,2]
[343231248,1732505461587,-500.0,0.00046848,2]
[343231249,1732505461597,-560.89804247,0.00046848,2]
[343231250,1732505461607,-500.0,0.00046848,2]
[343231251,1732505461616,-500.0,0.00046848,2]
[343231252,1732505461625,-508.86654423,0.00046848,2]
[343231253,1732505461634,-519.75485091,0.00046848,2]
[343231254,1732505461644,-500.0,0.00046848,2]
[343231255,1732505461653,-500.0,0.00046848,2]
[343231256,1732505461663,-500.0,0.00046848,2]
[343231257,1732505461672,-500.0,0.00046848,2]
[343231258,1732505461682,-510.44485799,0.00046848,2]
[343231259,1732505461693,-500.0,0.00046848,2]
[343231260,1732505461704,-504.96418336,0.00046848,2]
[343231261,1732505461713,-500.0,0.00046848,2]
[343231262,1732505461722,-500.0,0.00046848,2]
[343231263,1732505461732,-512.55219795,0.00046848,2]
[343231264,1732505461742,-500.0,0.00046848,2]
[343231265,1732505461751,-500.0,0.00046848,2]
[343231266,1732505461761,-500.0,0.00046848,2]
[343231267,1732505461770,-500.0,0.00046848,2]
[343231268,1732505461780,-500.0,0.00046848,2]
[343231269,1732505461789,-500.0,0.00046848,2]
[343231270,1732505461798,-500.0,0.00046848,2]
[343231271,1732505461808,-500.0,0.00046848,2]
[343231272,1732505461818,-500.0,0.00046848,2]
[343231273,1732505461827,-500.0,0.00046848,2]
[343231274,1732505461836,-509.33721527,0.00046848,2]
[343231275,1732505461845,-500.0,0.00046848,2]
[343231276,1732505461854,-500.0,0.00046848,2]
[343231277,1732505461863,-500.0,0.00046848,2]
[343231278,1732505461873,-500.0,0.00046848,2]
[343231279,1732505461882,-500.0,0.00046848,2]
[343231280,1732505461892,-500.0,0.00046848,2]
[343231281,1732505461901,-500.0,0.00046848,2]
[343231282,1732505461911,-500.0,0.00046848,2]
[343231283,1732505461920,-500.0,0.00046848,2]
[343231284,1732505461930,-500.0,0.00046848,2]
[343231285,1732505461941,-500.0,0.00046848,2]
[343231286,1732505461950,-500.0,0.00046848,2]
[343231287,1732505461960,-284.51561769,0.00046848,2]
[343231288,1732505461969,-510.96082432,0.00046848,2]
[343231289,1732505461979,-500.0,0.00046848,2]
[343231290,1732505461988,-500.0,0.00046848,2]
[343231291,1732505461998,-500.0,0.00046848,2]
[343231292,1732505462007,-500.0,0.00046848,2]
[343231293,1732505462017,-500.0,0.00046848,2]
[343231294,1732505462028,-500.0,0.00046848,2]
[343231295,1732505462037,-500.0,0.00046848,2]
[343231296,1732505462047,-500.0,0.00046848,2]
[343231297,1732505462056,-510.39842191,0.00046848,2]
[343231298,1732505462067,-500.0,0.00046848,2]
[343231299,1732505462077,-500.0,0.00046848,2]
[343231300,1732505462086,-500.0,0.00046848,2]